Cogmind - Beta 15 @@@ ROGUE MODE // 2025.05.27 @ 17:10:00 Player: the Result: Destroyed by Triborg with Siege Cannon Performance ------------- Evolutions (0) 0 Regions Visited (3) 600 Robots Destroyed (43) 215 Value Destroyed (1091) 1091 Prototype IDs (7) 140 Alien Tech Used (0) 0 Bonus (300) 300 TOTAL SCORE: 2346 Bonus ------- Registered with UFD 300 Cogmind --------- Core Integrity 0/250 Matter 291/300 Energy 180/180 System Corruption 0% Temperature Cool (0) Movement Treading (200) Ox1 Location -7/Scraptown Parts ------- > --- POWER (1) -------- Meta Core > --- PROPULSION (2+1) - Light Treads (+) Overtuned Treads Overtuned Treads > --- UTILITY (2+1) ---- Disposable Heat Sink (+) Large Storage Unit Seismic Detector > --- WEAPON (2) ------- Junk Cannon > --- INVENTORY (15) --- Ion Engine Light Treads Spiked Treads Disposable Heat Sink Disposable Heat Sink Large Storage Unit Signal Interpreter Makeshift Thermal Plating Improved Light Cannon Improved Light Cannon Improved Light Cannon Improved Light Cannon Battle Cannon Mining Laser CPS Tube (2) Peak State ------------ > --- POWER ------------ Meta Core > --- PROPULSION ------- Light Treads Spiked Treads Improved Medium Treads > --- UTILITY ---------- Disposable Heat Sink Large Storage Unit Seismic Detector > --- WEAPON ----------- Spread Laser Junk Cannon > --- INVENTORY -------- Ion Engine Light Treads Light Treads Disposable Heat Sink Disposable Heat Sink Signal Interpreter Makeshift Thermal Plating Heavy Laser Flak Gun Improved Light Cannon Improved Light Cannon Improved Light Cannon Improved Light Cannon Battle Cannon Mining Laser [Rating: 42] Favorites ----------- Power Meta Core Engine Ion Engine Power Core Meta Core Propulsion Light Treads Treads Light Treads Wheel Wheel Utility Large Storage Unit Device Seismic Detector Storage Large Storage Unit Processor Transport Network Coupler Weapon Spread Laser Energy Gun Spread Laser Energy Cannon Beam Cannon Ballistic Gun Assault Rifle Ballistic Cannon Improved Light Cannon Special Weapon Mining Laser Build | -11 -10 -10 -7 ------- Run | Yrd Mat Sub Scr Slots Evolved . | . . . . Power . | . . . . Propulsion . | . . . . Utility . | . . . . Weapon . | . . . . Parts Attached 45 | 9 23 7 6 Power 7 | 2 4 1 . Engine 5 | 2 3 . . Core 2 | . 1 1 . Reactor . | . . . . Propulsion 11 | 3 4 1 3 Treads 8 | . 4 1 3 Leg . | . . . . Wheel 3 | 3 . . . Hover . | . . . . Flight . | . . . . Utility 12 | 2 6 2 2 Device 6 | 1 3 2 . Storage 4 | 1 2 . 1 Processor 2 | . 1 . 1 Hackware . | . . . . Protection . | . . . . Artifact . | . . . . Weapon 15 | 2 9 3 1 Energy Gun 6 | 1 3 2 . Energy Cannon 2 | . 2 . . Ballistic Gun 3 | 1 2 . . Ballistic Cannon 1 | . . 1 . Launcher . | . . . . Special Weapon 3 | . 2 . 1 Impact Weapon . | . . . . Slashing Weapon . | . . . . Piercing Weapon . | . . . . Special Melee Weapon . | . . . . Unidentified Prototypes 2 | . . 1 1 Parts Lost 9 | . 4 4 1 Power 1 | . . 1 . Propulsion 1 | . 1 . . Utility 3 | . 1 2 . Weapon 4 | . 2 1 1 Highest Loss Streak 3 | . 3 2 1 To Critical Strikes . | . . . . Average Backups 13 | 5 11 13 14 Power . | . 1 1 1 Propulsion 2 | 2 2 1 1 Utility 3 | . 3 3 4 Weapon 6 | 1 4 7 7 Tool/Special . | . . . . Unused Backups 22 | 1 4 2 15 Power 1 | . . . 1 Propulsion 3 | . 2 . 1 Utility 8 | . 2 2 4 Weapon 9 | 1 . . 8 Tool/Special 1 | . . . 1 Average Slot Usage (%) 98 | . 99 99 96 Engine 5 | . 10 8 . Core 6 | . 3 3 10 Treads 27 | . 21 28 30 Wheel 2 | . 6 . . Device 16 | . 13 15 20 Storage 11 | . 14 12 10 Energy Gun 19 | . 10 25 23 Energy Cannon 1 | . 4 . . Ballistic Gun 2 | . 6 . . Special Weapon 3 | . 5 2 2 Peak Build Rating 42 | 8 15 29 42 Average Rating 22 | 5 10 17 35 On Entrance 12 | . 8 13 29 Naked Turns . | . . . . Heaviest Build 45 | 14 32 37 45 Greatest Support 70 | 26 40 60 70 Greatest Overweight (x) 1 | . 1 . 1 Average Overweight (x) . | . . . . Largest Inventory Capacity 15 | 8 15 15 15 Average Capacity 14 | 7 13 15 15 Most Carried 15 | 8 15 15 15 Average Carried 13 | 5 12 14 14 Final Capacity 15 | 8 15 15 15 Final Carried 15 | 8 15 14 15 Class Distribution -------------------- 47% | Gunner 35% | Mutant 16% | Scavenger-Mutant Dominant Class ---------------- Mutant | -10/Materials Mutant | -10/Subcaves Gunner | -7/Scraptown Resources | -11 -10 -10 -7 ----------- Run | Yrd Mat Sub Scr Matter Collected 969 | 275 435 203 56 Remotely . | . . . . Salvage Created 1103 | 101 658 172 172 Parts 87 | 13 48 14 12 Haulers Intercepted 2 | . 2 . . Recyclers Shooed 1 | . 1 . . Parts Field Recycled . | . . . . Retrieved Matter . | . . . . Parts Self-Destructed 9 | . . 9 . Prevented . | . . . . Kills | -11 -10 -10 -7 ------- Run | Yrd Mat Sub Scr Combat Hostiles Destroyed 31 | . 17 11 3 Guns 22 | . 13 9 . Cannons 9 | . 4 2 3 Classes Destroyed 12 | 2 5 2 3 Builder 1 | . 1 . . Tunneler 4 | 3 1 . . Hauler 2 | . 2 . . Recycler 1 | 1 . . . Turret 2 | . . 2 . Watcher 2 | . 2 . . Swarmer 9 | . 5 4 . Grunt 12 | . 12 . . Subdweller 7 | . . 7 . Guru 1 | . . . 1 Scrapper 1 | . . . 1 Elite 1 | . . . 1 Best Kill Streak 5 | 4 4 5 2 Combat Bots Only 3 | . 3 3 2 Max Kills in Single Turn 1 | 1 1 1 1 Gunslinging . | . . . . Exploded . | . . . . Melee . | . . . . Uniques/NPCs Destroyed . | . . . . Combat | -11 -10 -10 -7 -------- Run | Yrd Mat Sub Scr Hostile Shots Fired 215 | . 111 88 16 Missed 78 | . 37 37 4 Hits 137 | . 74 51 12 Projectile 137 | . 74 51 12 AOE 1 | . . 1 . Critical Strikes 1 | . . 1 . Damage Taken 1661 | . 701 640 320 Core 306 | . 120 78 108 Absorbed by Shields . | . . . . Core Remaining (%) 100 | 100 . . . Volleys Fired 165 | 6 93 54 12 Largest 3 | 2 2 3 2 Hottest 195 | 60 130 195 65 Shots Fired 264 | 12 150 85 17 Gun 171 | 12 89 63 7 Cannon 49 | . 32 17 . Launcher . | . . . . Special 44 | . 29 5 10 Kinetic 71 | 6 48 17 . Thermal 170 | 6 89 68 7 Explosive . | . . . . Electromagnetic 13 | . 13 . . Impact 10 | . . . 10 Robot Hit Streak 15 | 7 13 15 5 Robot Miss Streak 10 | 1 10 4 5 Penetration Max . | . . . . Secondary Targets 6 | . 5 1 . Max Gunslinging Chain 1 | . 1 1 . Shots Hit Robots 152 | 10 68 61 13 Core Hits 139 | 5 52 74 8 Critical Kills . | . . . . Critical Parts Destroyed 1 | . . . 1 Critical Strikes 2 | . . 1 1 Blast 1 | . . 1 . Smash 1 | . . . 1 Melee Attacks . | . . . . Impact . | . . . . Slashing . | . . . . Piercing . | . . . . Sneak Attacks . | . . . . Combat Hostiles . | . . . . Follow-up Attacks . | . . . . Damage Inflicted 2757 | 129 1002 1027 599 Guns 1787 | 129 702 878 78 Cannons 449 | . 300 149 . Explosions . | . . . . Melee . | . . . . Ramming . | . . . . Kinetic 487 | 65 273 149 . Thermal 1683 | 64 663 878 78 Explosive . | . . . . Electromagnetic 66 | . 66 . . Impact 521 | . . . 521 Slashing . | . . . . Piercing . | . . . . Highest Corruption 1 | . 1 1 . Average Corruption 1 | . 1 1 . Corruption Purged . | . . . . Corruption Blocked . | . . . . Effects 12 | . 2 10 . Message Errors 4 | . . 4 . Matter Fused 4 | . 1 3 . Data Loss (minor) 3 | . 1 2 . Weapon Failures 1 | . . 1 . Overload Shots . | . . . . Overflow Damage 140 | . . 8 132 Projectiles 140 | . . 8 132 Explosions . | . . . . Melee . | . . . . Knockbacks 4 | . . 3 1 Impact 1 | . . . 1 Kinetic 3 | . . 3 . Secondary . | . . . . Self-Inflicted Damage . | . . . . Shots . | . . . . Rammed . | . . . . Targets Rammed . | . . . . Kicked . | . . . . Crushed . | . . . . Highest Temperature 231 | 20 231 184 74 Average Temperature 61 | 20 67 49 16 Received Heat Transfer 405 | . 189 144 72 Siege Activations . | . . . . Martial Activations . | . . . . Shielding Activations . | . . . . Robots Disrupted . | . . . . Combat Hostiles . | . . . . Robots Corrupted . | . . . . Combat Hostiles . | . . . . Parts Fried 3 | . . . 3 Impact Corruptions 3 | . . . 3 Robots Melted . | . . . . Combat Hostiles . | . . . . Parts Melted 3 | . 1 2 . Heat Transferred 2394 | 150 1119 1110 15 Parts Sabotaged . | . . . . Parts Stolen . | . . . . Parts Stripped . | . . . . Power Chain Reactions . | . . . . Alert | -11 -10 -10 -7 ------- Run | Yrd Mat Sub Scr Maximum Alert Level . | . . . . Low Security (%) 100 | 100 100 . . Level 1 . | . . . . Level 2 . | . . . . Level 3 . | . . . . Level 4 . | . . . . Level 5 . | . . . . High Security . | . . . . Max Security . | . . . . Peak Influence 118 | 15 118 . . Initial 3 | . 3 . . Average 39 | 3 41 . . Influence Increases 820 | 20 560 240 . Destroy 0b10 Robot/C 460 | . 340 120 . Destroy 0b10 Robot/NC 50 | 20 30 . . Destroy Leader 78 | . 78 . . Successful Hack 30 | . 30 . . Disable Machine 30 | . 30 . . Destroy Structure 22 | . 22 . . Partial Spotted 15 | . 15 . . Lose Combat Pursuer 135 | . 15 120 . Influence Decreases 820 | 15 511 282 12 Entered New Map 40 | . 2 26 12 Time Decay 720 | 15 469 236 . Lost Part 60 | . 40 20 . Squads Dispatched 5 | . 5 . . Investigation 4 | . 4 . . Extermination . | . . . . Reinforcement 1 | . 1 . . Assault . | . . . . Garrison . | . . . . Intercept . | . . . . Searches Triggered . | . . . . Construction Impeded . | . . . . Haulers Reinforced . | . . . . Active Scanning Responses . | . . . . Cargo Convoy Interrupts . | . . . . Stealth | -11 -10 -10 -7 --------- Run | Yrd Mat Sub Scr Distress Signals 4 | . 4 . . Communications Jammed . | . . . . Distress Signals . | . . . . Times Spotted 46 | . 28 16 2 Peak Tracking Total 7 | . 4 3 7 Tactical Retreats 4 | . 1 3 . Traps | -11 -10 -10 -7 ------- Run | Yrd Mat Sub Scr Traps Triggered 3 | . 3 . . Indirectly . | . . . . Trap Hack Attempts . | . . . . Triggered . | . . . . Disarmed . | . . . . Reprogrammed . | . . . . Reused . | . . . . Traps Extracted . | . . . . Installed . | . . . . Triggered . | . . . . Machines | -11 -10 -10 -7 ---------- Run | Yrd Mat Sub Scr Machines Disabled 3 | . 2 . 1 Max in Single Turn 1 | . 1 . 1 Machines Repaired . | . . . . Machines Dismantled . | . . . . Machines Sabotaged . | . . . . Overloaded Fab Kills . | . . . . Hacking | -11 -10 -10 -7 --------- Run | Yrd Mat Sub Scr Machines Accessed 7 | . 7 . . Terminals 6 | . 6 . . Fabricators . | . . . . Repair Stations . | . . . . Recycling Units 1 | . 1 . . Scanalyzers . | . . . . Garrison Access . | . . . . Total Hacks 26 | . 26 . . Successful 14 | . 14 . . Failed 12 | . 12 . . Catastrophic 2 | . 2 . . Database Lockouts . | . . . . Manual 10 | . 10 . . Terminals 24 | . 24 . . Fabricators . | . . . . Repair Stations . | . . . . Recycling Units 2 | . 2 . . Scanalyzers . | . . . . Garrison Access . | . . . . Terminal Hacks 8 | . 8 . . Part Schematic 1 | . 1 . . Prototype ID Bank 4 | . 4 . . Locate Traps 2 | . 2 . . Hauler Manifests 1 | . 1 . . Fabricator Hacks . | . . . . Repair Station Hacks . | . . . . Recycling Unit Hacks 1 | . 1 . . Report Inventory 1 | . 1 . . Scanalyzer . | . . . . Garrison Access Hacks . | . . . . Unauthorized Hacks 5 | . 5 . . Terminals 5 | . 5 . . Assimilate 1 | . 1 . . Botnet 3 | . 3 . . Operators 1 | . 1 . . Fabricators . | . . . . Repair Stations . | . . . . Recycling Units . | . . . . Scanalyzers . | . . . . Garrison Access . | . . . . Data Cores Recovered . | . . . . Used . | . . . . Hacking Detections 6 | . 6 . . Full Trace Events 2 | . 2 . . Feedback Events . | . . . . Feedback Blocked . | . . . . Robot Schematics Acquired . | . . . . Robots Built . | . . . . Authchips . | . . . . Time . | . . . . Total Robot Build Rating . | . . . . Part Schematics Acquired 1 | . 1 . . Parts Built . | . . . . Authchips . | . . . . Time . | . . . . Total Part Build Rating . | . . . . Parts Repaired . | . . . . Time . | . . . . Parts Recycled . | . . . . Recycled Matter . | . . . . Retrieved Matter . | . . . . Retrieved Components . | . . . . Parts Scanalyzed . | . . . . Part Schematics Acquired . | . . . . Parts Damaged . | . . . . Bothacking | -11 -10 -10 -7 ------------ Run | Yrd Mat Sub Scr Used RIF Installer . | . . . . Robots Hacked . | . . . . Non-combat . | . . . . Combat . | . . . . Robot Hacks Applied . | . . . . Relay Couplers Released . | . . . . Fabnet Peak Effective % . | . . . . Robots Rewired . | . . . . Allies Hacked . | . . . . Hacks Repelled . | . . . . Allies | -11 -10 -10 -7 -------- Run | Yrd Mat Sub Scr Total Allies . | . . . . Largest Group . | . . . . Highest-Rated Group . | . . . . Highest-Rated Ally . | . . . . Total Orders . | . . . . Ally Attacks . | . . . . Total Damage . | . . . . Kills . | . . . . Allies Corrupted . | . . . . Allies Melted . | . . . . Intel | -11 -10 -10 -7 ------- Run | Yrd Mat Sub Scr Active Infowar (turns) 3535 | 8 955 645 1927 Seismic 3534 | 8 954 645 1927 T.N.C. 1 | . 1 . . Robot Analysis Total . | . . . . Derelict Logs Recovered 2 | . . 1 1 Drone Launches . | . . . . Drone Recoveries . | . . . . Exploration | -11 -10 -10 -7 ------------- Run | Yrd Mat Sub Scr Turns Passed 4608 | 96 1473 1110 1929 Spaces Moved 2507 | 65 730 544 1168 Core 1 | 1 . . . Treads 2301 | . 589 544 1168 Legs . | . . . . Wheels 205 | 64 141 . . Hover . | . . . . Flight . | . . . . Fastest Speed 50 | 50 80 160 146 Average Speed 153 | 86 144 160 160 Slowest Speed 240 | 90 240 160 200 Overloaded Moves . | . . . . Propulsion Burnouts . | . . . . Robots Hopped . | . . . . Potential Cave-ins . | . . . . Cave-ins Triggered . | . . . . Exploration Rate (%) 52 | 3 96 35 75 Regions Visited 3 Branch Regions 2 Pre-discovered Areas 1 | . . 1 . Known Exits Taken . | . . . . Unknown Exits Taken 3 | 1 1 1 . Scrap Searched 2 | . . . 2 Spaces Dug 26 | . 26 . . Terrain Destroyed 27 | . 26 . 1 Melee . | . . . . Projectile 27 | . 26 . 1 AOE . | . . . . Terrain Rammed . | . . . . Walls Destroyed . | . . . . Machines Disabled . | . . . . Actions | -11 -10 -10 -7 --------- Run | Yrd Mat Sub Scr Total 2928 | 90 942 690 1206 Wait 131 | . 54 69 8 Move 2504 | 64 729 543 1168 Hop . | . . . . Pick Up 36 | 9 17 7 3 Fast Attach 14 | 6 4 2 2 Attach 9 | 1 3 5 . Detach . | . . . . Swap 37 | 2 24 6 5 Drop 32 | 2 18 4 8 Fire 165 | 6 93 54 12 Melee . | . . . . Ram . | . . . . Kick . | . . . . Crush . | . . . . Escape Stasis . | . . . . Rewire . | . . . . Trap . | . . . . Miscellaneous . | . . . . Route ------- -11/Scrapyard -10/Materials (discovered 6 exits: [*Mat x3] / [*Min x2] / [*Sub]) -10/Subcaves (discovered 3 exits: [*Mat] / [*Rec] / *Scr) -7/Scraptown (discovered 1 exit: [*Fac]) History --------- Turn | Location | Event 17 | -11/Scrapyard | Discovered new exit (range 16) 97 | -11/Scrapyard | Entered Materials 323 | -10/Materials | Build established: Mutant 398 | -10/Materials | Discovered new exit (range 11) 413 | -10/Materials | Lost 3 parts (1u2w) 461 | -10/Materials | Discovered new exit (range 12) 495 | -10/Materials | Discovered new exit (range 14) 742 | -10/Materials | Build established: Scavenger-Mutant 769 | -10/Materials | Discovered new exit (range 11) 1142 | -10/Materials | Discovered new exit (range 11) 1192 | -10/Materials | Discovered new exit (range 12) 1401 | -10/Materials | Build established: Mutant 1570 | -10/Materials | Entered Subcaves 1571 | -10/Subcaves | Approached by a straggling Scientist 1582 | -10/Subcaves | Learned location of Zion (-6) 1765 | -10/Subcaves | Shifting Twisted Machinery released Scrap Shield 1947 | -10/Subcaves | Discovered new exit (range 15) 1986 | -10/Subcaves | Core integrity fell below 50% 2055 | -10/Subcaves | Shifting Twisted Machinery released Mak. Thermal Plating 2057 | -10/Subcaves | Shifting Twisted Machinery released Riot Gun 2122 | -10/Subcaves | Discovered new exit (range 10) 2271 | -10/Subcaves | A Subdweller sparked back to life 2271 | -10/Subcaves | A Subdweller sparked back to life 2271 | -10/Subcaves | A Subdweller sparked back to life 2285 | -10/Subcaves | Found Prototype Power Core 2285 | -10/Subcaves | Identified Meta Core 2287 | -10/Subcaves | Attached Meta Core, gained temporary slots: Propulsion, Utility, Weapon 2580 | -10/Subcaves | Build established: Gunner 2615 | -10/Subcaves | A swath of the cavern ceiling suddenly collapsed 2642 | -10/Subcaves | Scientist uncovered a shortcut to Scraptown 2680 | -10/Subcaves | Entered Scraptown 2680 | -7/Scraptown | System corruption cleaned by C-Scrubber 3004 | -7/Scraptown | Scanned Subdweller tech in exchange for log data 3009 | -7/Scraptown | Learned Research security intel 3038 | -7/Scraptown | Discovered new exit (range 5) 3158 | -7/Scraptown | Visited Awakened 3217 | -7/Scraptown | Visited SPCMW 3625 | -7/Scraptown | Visited Spacefarers 3705 | -7/Scraptown | Heard Great Nut preacher, LISTEN AND RECITE! 3782 | -7/Scraptown | Visited Fellowship of the Rings 3828 | -7/Scraptown | Visited Cyclists 3863 | -7/Scraptown | Visited Red Mages 3940 | -7/Scraptown | Visited UFD Registry 3940 | -7/Scraptown | Registered with UFD as "Metafunk" 4007 | -7/Scraptown | Visited Science Testing Area 4033 | -7/Scraptown | Visited Junk Cannon Lab 4050 | -7/Scraptown | Found Prototype Special Weapon 4050 | -7/Scraptown | Identified Junk Cannon 4094 | -7/Scraptown | Visited LU-1G1's Boring Crew 4419 | -7/Scraptown | Attacked by Scraptown defenders 4454 | -7/Scraptown | Core integrity fell below 20% 4609 | -7/Scraptown | Destroyed by Triborg with Siege Cannon Last Messages --------------- 04491_ Junk Cannon collects and crushes Scrap Suit (+5 shots). 04498_ Junk Cannon collects and crushes Corrupted Ovr. Titanium Leg (+2 shots). 04509_ Acquired CPS Tube. 04523_ Ovr. Treads suddenly begins malfunctioning. 04524_ ANNOUNCEMENT: Triborg tracking relay activated. Stay clear or you only have yourself to blame! 04558_ UFD Mainframe disabled. 04565_ Junk Cannon collects and crushes CPS Tube. 04571_ Ovr. Treads recovered from malfunction. 04579_ Junk Cannon collects and crushes CPS Tube. 04591_ Ovr. Treads suddenly begins malfunctioning. 04605_ Acquired 1 matter. 04609_ Penetrated by Siege Slug. Map ----- +----------------------------------------------------+ | """""""""""""""""""""""""""" | | "#? | | "#? | | "#? | | #""""#" ## | | #????#" # | | #????#"""""" """"""""""" """"""""""" """""" ## | | ###????####### ########### ########### ###### #? | | ??????????# # ## ## #? | | ??????????# # ## # # ## #? | | ??????????# # ## # # ## #? | | ??????????# #""" "###"### # # ## #? | | ??????????# #" "#?????# ####### ## #? | | ??????????# #"" "#?????# ## ## | | ??????????# #"" "#?????# # """ # ## | | ??????????# #"" "#?????# # "#" # ## | | ??????????###########"" "#?????# # """ # ## | | ????????????????????#""""""#?????# # # ## | | ????????????????????#""""""#?????############% % | | ?????????????????????#######???????????????#" ## | | ????######################################### ## | | ????# ##"""##"""##"""##"""##"""##" "# % "" | | ????# """"""" ## ""## ""##" "##"""##"" ##" # "" | | ????# """"""" % | | ????# """"" " | | ????# """"""" @ "" | | ????# """"""" ##"""##"""##"" ##"|"## ! ##"" ## ### | | ????# ##"""##"""##"""##"""##"""##"""####?? | | ????##?######################################????? | | ?????????????????????????????????????????????????? | | ?????????????????????????????????????????????????? | | ?????????????????????????????????????????????????? | | ?????????????????????????????????????????????????? | | ?????????????????????????????????????????????????? | | ?????????????????????????????????????????????????? | | ?????????????????????????????????????????????????? | | ?????????????????????????????????????????????????? | | ?????????????????????????????????????????????????? | | ?????????????????????????????????????????????????? | | ?????????????????????????????????????????????????? | | ?????????????????????????????????????????????????? | | ?????????????????????????????????????????????????? | | ?????????????????????????????????????????????????? | | | | | | | | | | | | | | | +----------------------------------------------------+ Best States ------------- Heat Dissipation 39 Coolant Potential 50 Energy Generation 17 Energy Capacity 250 Matter Stores 300 Matter Capacity 300 Sight Range 16 Terrain Scan Density 10 Evasion (%) 44 Recoil Reduction 3 Item Schematics ----------------- Hcp. Storage Unit | -10/Materials | Hacked Robot Schematics ------------------ None Fabricated ------------ Nothing Repaired ---------- Nothing Alien Tech Used ----------------- None Achievements -------------- None Challenges ------------ None Game ------ Seed MagneticVisualBlaster Manual? 0 Play Time 00:51:51 Cumulative 97.9 hours Start 2025.05.27 @ 15:59:02 End 2025.05.27 @ 17:10:00 Sessions 1 Manual Loads 0 Difficulty Rogue Special Mode None Game No. 78 Rogue 78 Adventurer 0 Explorer 0 Win Type - Total 1 Types 1/0/0/0/0/0/0/0/0/0 Lore% 36 Gallery% 42 Achievement% 39 Wizard Run 0 Options --------- Layout 1 ASCII 0 Keyboard 0 Movement Mouse Keybinds 0 Fullscreen 1 Font 24/Smallcaps Map View 50x35 Zoom Use 0% Tactical HUD 1 Map Filters NONE Filters NONE Steam 1 RUN: 7b8bf04d-4bf9-462a-b702-f2ac9035b637